Cogmind - Beta 11 @@@ ROGUE MODE // 2022.04.12 @ 01:01:02 Player: Rainynight Result: Destroyed by G-73 Enforcer with Heavy Laser Performance ------------- Evolutions (9) 4500 Regions Visited (20) 4000 Robots Destroyed (36) 180 Value Destroyed (787) 787 Prototype IDs (37) 740 Alien Tech Used (2) 400 Bonus (600) 600 TOTAL SCORE: 11207 Bonus ------- Aligned with FarCom 300 Met Zhirov 300 Cogmind --------- Core Integrity 0/1600 Matter 249/300 Energy 43/100 System Corruption 17% Temperature Cool (18) Movement Core (350) Ox6 Location -1/Command Parts ------- > --- POWER (2) -------- (None) > --- PROPULSION (9) --- (None) > --- UTILITY (12) ----- Large Storage Unit 0b10 Decoder Chip [Generic] Hacking Suite System Shield Advanced System Shield > --- WEAPON (2) ------- (None) > --- INVENTORY (15) --- Quantum Reactor Quantum Reactor Improved Matter Compressor (300) Makeshift ECM Suite Advanced Reaction Control System Improved System Restoration Module Chainsword Peak State ------------ > --- POWER ------------ Light Particle Reactor Quantum Reactor > --- PROPULSION ------- Flying Fortress v7 Q-thruster Impulse Thruster Array Impulse Thruster Array > --- UTILITY ---------- Large Storage Unit Structural Scanner 0b10 Decoder Chip [Generic] Advanced Transmission Jammer Makeshift ECM Suite Makeshift ECM Suite Makeshift ECM Suite Hacking Suite System Shield System Shield Advanced System Shield Advanced System Shield > --- WEAPON ----------- Chainsword Enhanced Force Lance > --- INVENTORY -------- Particle Reactor Impulse Thruster Field Propulsion Array Field Propulsion Array Field Propulsion Array Field Propulsion Array Q-thruster High-capacity Battery Improved Matter Compressor Transdimensional Reconstructor Gamma Bomb Array [Rating: 155] Favorites ----------- Power Light Nuclear Core Engine Cooled Deuterium Engine Power Core Light Nuclear Core Reactor Light Particle Reactor Propulsion Cooled VTOL Module Treads Light Treads Leg Aluminum Leg Flight Unit Cooled VTOL Module Utility Structural Scanner Device Structural Scanner Storage Medium Storage Unit Processor 0b10 Decoder Chip [Generic] Hackware Advanced System Shield Protection Light Armor Plating Weapon Light Assault Rifle Energy Gun Heavy Laser Ballistic Gun Light Assault Rifle Launcher Gamma Bomb Array Slashing Weapon Chainsword Piercing Weapon Enhanced Force Lance Build | -11 -10 -10 -10 -9 -8 -7 -7 -6 -5 -5 -5 -5 -4 -4 -4 -4 -3 -2 -1 -1 ------- Run | Scr Mat Min Exi Min Mat Fac Sto Fac Fac Upp Upp Zhi Pro Fac Upp Upp Res Res Acc Com Slots Evolved 18 | . . . . . 4 2 . 2 2 . . . . 2 . . 2 2 2 . Power 1 | . . . . . . . . . 1 . . . . . . . . . . . Propulsion 7 | . . . . . 4 2 . . 1 . . . . . . . . . . . Utility 10 | . . . . . . . . 2 . . . . . 2 . . 2 2 2 . Weapon . | . . . . . . . . . . . . . . . . . . . . . Parts Attached 102 | . 11 . 4 . 23 19 2 3 6 . . 1 . 2 . . 9 5 7 10 Power 14 | . 2 . 1 . 2 1 1 . 1 . . . . . . . 2 2 . 2 Engine 7 | . 1 . . . 2 1 1 . 1 . . . . . . . . . . 1 Core 2 | . 1 . 1 . . . . . . . . . . . . . . . . . Reactor 5 | . . . . . . . . . . . . . . . . . 2 2 . 1 Propulsion 46 | . 4 . . . 15 14 1 . 1 . . . . . . . 4 1 2 4 Treads 6 | . 2 . . . 2 2 . . . . . . . . . . . . . . Leg 9 | . 2 . . . 5 2 . . . . . . . . . . . . . . Wheel . | . . . . . . . . . . . . . . . . . . . . . Hover . | . . . . . . . . . . . . . . . . . . . . . Flight 31 | . . . . . 8 10 1 . 1 . . . . . . . 4 1 2 4 Utility 29 | . 3 . 3 . 2 . . 3 4 . . 1 . 2 . . 2 2 4 3 Device 14 | . 1 . 1 . 1 . . 1 3 . . 1 . 1 . . . 2 2 1 Storage 7 | . 2 . 2 . . . . 1 . . . . . . . . . . 1 1 Processor 1 | . . . . . . . . . . . . . . 1 . . . . . . Hackware 6 | . . . . . . . . 1 1 . . . . . . . 2 . 1 1 Protection 1 | . . . . . 1 . . . . . . . . . . . . . . . Artifact . | . . . . . . . . . . . . . . . . . . . . . Weapon 13 | . 2 . . . 4 4 . . . . . . . . . . 1 . 1 1 Energy Gun 3 | . 1 . . . . 1 . . . . . . . . . . 1 . . . Energy Cannon . | . . . . . . . . . . . . . . . . . . . . . Ballistic Gun 1 | . 1 . . . . . . . . . . . . . . . . . . . Ballistic Cannon . | . . . . . . . . . . . . . . . . . . . . . Launcher 1 | . . . . . . . . . . . . . . . . . . . . 1 Special Weapon . | . . . . . . . . . . . . . . . . . . . . . Impact Weapon . | . . . . . . . . . . . . . . . . . . . . . Slashing Weapon 7 | . . . . . 4 3 . . . . . . . . . . . . . . Piercing Weapon 1 | . . . . . . . . . . . . . . . . . . . 1 . Special Melee Weapon . | . . . . . . . . . . . . . . . . . . . . . Unidentified Prototypes 5 | . . . . . . 1 1 . 1 . . 1 . . . . . . . 1 Corrupted Parts 1 | . 1 . . . . . . . . . . . . . . . . . . . System Corruption 2 | . 2 . . . . . . . . . . . . . . . . . . . Parts Lost 32 | . . . . . 10 . . . . . . . . . . . . . 1 21 Power 5 | . . . . . 2 . . . . . . . . . . . . . . 3 Propulsion 14 | . . . . . 4 . . . . . . . . . . . . . 1 9 Utility 8 | . . . . . 1 . . . . . . . . . . . . . . 7 Weapon 5 | . . . . . 3 . . . . . . . . . . . . . . 2 Highest Loss Streak 21 | . . . . . 7 . . . . . . . . . . . . . 1 21 To Critical Strikes 1 | . . . . . . . . . . . . . . . . . . . 1 . Average Slot Usage (%) 83 | . 89 100 99 100 75 75 76 77 81 82 82 82 82 84 84 . 79 78 78 73 Engine 3 | . 8 . . . 3 7 7 6 11 11 11 11 11 10 10 . 5 2 . 3 Core 4 | . 5 14 13 14 4 . . . . . . . . . . . . . . . Reactor 1 | . . . . . . . . . . . . . . . . . 3 5 7 3 Treads 2 | . 17 . . . 6 . . . . . . . . . . . . . . . Leg 9 | . 7 28 28 28 13 . . . . . . . . . . . . . . . Flight 15 | . . . . . 12 37 38 33 35 35 35 35 35 31 31 . 23 17 16 19 Device 11 | . 8 14 13 14 8 7 7 13 7 5 5 5 5 10 10 . 9 17 19 15 Storage 8 | . 14 14 14 14 9 7 7 4 5 5 5 5 5 5 5 . 4 4 4 4 Processor 1 | . . . . . . . . . . . . . . 5 5 . 4 4 4 4 Hackware 6 | . . . . . . . . 6 8 11 11 11 11 10 10 . 19 17 20 20 Energy Gun 7 | . 14 14 14 14 5 5 7 6 5 5 5 5 5 5 5 . 3 4 2 . Ballistic Gun 5 | . 12 14 14 14 4 . . . . . . . . . . . . . . . Slashing Weapon 2 | . . . . . 5 8 7 6 5 5 5 5 5 5 5 . 4 4 2 . Naked Turns . | . . . . . . . . . . . . . . . . . . . . . Heaviest Build 88 | 11 86 18 18 18 19 23 29 30 35 34 34 34 34 42 42 42 55 76 88 71 Greatest Support 90 | 20 40 20 20 20 58 70 72 70 76 84 84 70 82 84 84 84 87 90 90 70 Greatest Overweight (x) 6 | . 4 . . . 4 1 . . . . . . . . . . . . . 6 Average Overweight (x) . | . . . . . . . . . . . . . . . . . . . . . Largest Inventory Capacity 35 | . 25 10 35 10 10 10 10 10 10 10 10 10 10 10 10 10 10 10 15 15 Average Capacity 10 | . 11 10 10 10 10 10 10 8 10 10 10 10 10 10 10 10 10 10 13 15 Most Carried 15 | . 10 10 10 10 10 10 10 9 10 10 10 10 10 9 9 9 10 10 15 15 Average Carried 10 | . 9 10 9 10 8 9 9 7 8 10 9 9 10 8 9 9 9 9 12 13 Final Capacity 15 | 8 10 10 10 10 10 10 10 10 10 10 10 10 10 10 10 10 10 10 15 15 Final Carried 12 | 6 10 10 10 10 10 10 10 9 10 10 10 10 10 9 9 9 10 10 12 7 Class Distribution -------------------- 43% | Scavenger-Mutant 18% | Hacker-Sprinter 17% | Hacker-Mutant 9% | Sprinter 7% | Mutant Dominant Class ---------------- Mutant | -10/Materials Scavenger-Mutant | -10/Mines Scavenger-Mutant | -10/Exiles Scavenger-Mutant | -9/Mines Scavenger-Mutant | -8/Materials Sprinter | -7/Factory Sprinter | -7/Storage Infiltrator-Sprinter | -6/Factory Hacker-Sprinter | -5/Factory Hacker-Sprinter | -5/Upper Caves Hacker-Sprinter | -5/Upper Caves Hacker-Sprinter | -5/Zhirov Hacker-Sprinter | -4/Proximity Caves Hacker-Sprinter | -4/Factory Hacker-Sprinter | -4/Upper Caves Hacker-Sprinter | -4/Upper Caves Hacker-Sprinter | -3/Research Hacker-Mutant | -2/Research Hacker-Mutant | -1/Access Hacker-Sprinter | -1/Command Resources | -11 -10 -10 -10 -9 -8 -7 -7 -6 -5 -5 -5 -5 -4 -4 -4 -4 -3 -2 -1 -1 ----------- Run | Scr Mat Min Exi Min Mat Fac Sto Fac Fac Upp Upp Zhi Pro Fac Upp Upp Res Res Acc Com Matter Collected 1605 | 200 134 20 107 . 211 146 80 60 . 91 35 200 . . 36 . 156 . . 129 Remotely . | . . . . . . . . . . . . . . . . . . . . . Salvage Created 1410 | . 537 . . . 191 157 . 107 . . . . . . . . . . . 418 Parts 93 | . 46 . . . 12 2 . 5 . . . . . . . . . . . 28 Haulers Intercepted . | . . . . . . . . . . . . . . . . . . . . . Recyclers Shooed 4 | . 4 . . . . . . . . . . . . . . . . . . . Parts Field Recycled . | . . . . . . . . . . . . . . . . . . . . . Retrieved Matter . | . . . . . . . . . . . . . . . . . . . . . Parts Self-Destructed . | . . . . . . . . . . . . . . . . . . . . . Prevented . | . . . . . . . . . . . . . . . . . . . . . Kills | -11 -10 -10 -10 -9 -8 -7 -7 -6 -5 -5 -5 -5 -4 -4 -4 -4 -3 -2 -1 -1 ------- Run | Scr Mat Min Exi Min Mat Fac Sto Fac Fac Upp Upp Zhi Pro Fac Upp Upp Res Res Acc Com Combat Hostiles Destroyed 20 | . 6 . . . 9 . . . . . . . . . . . . . . 5 Melee 5 | . . . . . 5 . . . . . . . . . . . . . . . Guns 9 | . 5 . . . 4 . . . . . . . . . . . . . . . AOE 5 | . 1 . . . . . . . . . . . . . . . . . . 4 Classes Destroyed 9 | . 6 . . . 1 . . . . . . . . . . . . . . 2 Worker 2 | . 2 . . . . . . . . . . . . . . . . . . . Builder 4 | . 4 . . . . . . . . . . . . . . . . . . . Recycler 6 | . 3 . . . . 2 . 1 . . . . . . . . . . . . Operator 2 | . . . . . . . . . . . . . . . . . . . . 2 Watcher 2 | . 1 . . . . . . . . . . . . . . . . . . 1 Swarmer 13 | . 3 . . . 8 . . . . . . . . . . . . . . 2 Cutter 1 | . . . . . . . . . . . . . . . . . . . . 1 Grunt 5 | . 3 . . . . . . . . . . . . . . . . . . 2 Hunter 1 | . . . . . 1 . . . . . . . . . . . . . . . Best Kill Streak 7 | . 7 . . . 4 1 . 1 . . . . . . . . . . . 6 Combat Bots Only 5 | . 3 . . . 4 . . . . . . . . . . . . . . 5 Max Kills in Single Turn 4 | . 2 . . . 1 1 . 1 . . . . . . . . . . . 4 Gunslinging . | . . . . . . . . . . . . . . . . . . . . . Exploded 3 | . 1 . . . . . . . . . . . . . . . . . . 3 Melee 1 | . . . . . 1 . . . . . . . . . . . . . . . Uniques/NPCs Destroyed . | . . . . . . . . . . . . . . . . . . . . . Combat | -11 -10 -10 -10 -9 -8 -7 -7 -6 -5 -5 -5 -5 -4 -4 -4 -4 -3 -2 -1 -1 -------- Run | Scr Mat Min Exi Min Mat Fac Sto Fac Fac Upp Upp Zhi Pro Fac Upp Upp Res Res Acc Com Damage Taken 5786 | . 271 31 . . 1609 . . 50 . 117 20 . 38 . 24 . 12 102 208 3304 Core 1894 | . 52 21 . . 254 . . 25 . . 20 . . . . . . . 23 1499 Absorbed by Shields . | . . . . . . . . . . . . . . . . . . . . . Regen/Repaired (Parts) 105 | . . . . . . . . 105 . . . . . . . . . . . . Core Remaining (%) 90 | 100 . . . 70 53 . 100 97 . . . . 98 . . 100 100 100 . . Volleys Fired 58 | . 44 2 . . 8 2 . . . . . . . . . . . . . 2 Largest 2 | . 2 2 . . 2 1 . . . . . . . . . . . . . 1 Hottest 80 | . 60 60 . . 60 69 . . . . . . . . . . . . . 80 Shots Fired 111 | . 88 4 . 1 14 2 . . . . . . . . . . . . . 2 Gun 109 | . 88 4 . 1 14 2 . . . . . . . . . . . . . . Cannon . | . . . . . . . . . . . . . . . . . . . . . Launcher 2 | . . . . . . . . . . . . . . . . . . . . 2 Special . | . . . . . . . . . . . . . . . . . . . . . Kinetic 55 | . 44 2 . 1 8 . . . . . . . . . . . . . . . Thermal 10 | . . 2 . . 6 2 . . . . . . . . . . . . . . Explosive . | . . . . . . . . . . . . . . . . . . . . . Electromagnetic 46 | . 44 . . . . . . . . . . . . . . . . . . 2 Robot Hit Streak 8 | . 8 1 . . 6 . . . . . . . . . . . . . . 4 Robot Miss Streak 7 | . 7 1 . . 2 . . . . . . . . . . . . . . 2 Penetration Max . | . . . . . . . . . . . . . . . . . . . . . Secondary Targets 4 | . 1 . . . 3 . . . . . . . . . . . . . . . Max Gunslinging Chain 1 | . 1 . . . 1 . . . . . . . . . . . . . . . Shots Hit Robots 87 | . 52 2 . . 26 2 . 1 . . . . . . . . . . . 4 Core Hits 120 | . 28 2 . . 12 2 . 1 . . . . . . . . . . . 75 Critical Kills . | . . . . . . . . . . . . . . . . . . . . . Critical Parts Destroyed . | . . . . . . . . . . . . . . . . . . . . . Critical Strikes 4 | . . . . . 4 . . . . . . . . . . . . . . . Sever 4 | . . . . . 4 . . . . . . . . . . . . . . . Melee Attacks 150 | . . . . . 48 16 6 1 2 3 . . . . 1 . 11 7 35 20 Impact . | . . . . . . . . . . . . . . . . . . . . . Slashing 109 | . . . . . 48 16 6 1 2 3 . . . . 1 . 11 7 14 . Piercing 41 | . . . . . . . . . . . . . . . . . . . 21 20 Sneak Attacks 4 | . . . . . . 2 . 1 . . . . . . . . . . . 1 Combat Hostiles . | . . . . . . . . . . . . . . . . . . . . . Follow-up Attacks 1 | . . . . . 1 . . . . . . . . . . . . . . . Damage Inflicted 2720 | . 717 17 . . 367 110 . 87 . . . . . . . . . . . 1422 Guns 717 | . 615 17 . . 85 . . . . . . . . . . . . . . . Cannons . | . . . . . . . . . . . . . . . . . . . . . Explosions 1284 | . 102 . . . . . . . . . . . . . . . . . . 1182 Melee 719 | . . . . . 282 110 . 87 . . . . . . . . . . . 240 Ramming . | . . . . . . . . . . . . . . . . . . . . . Kinetic 249 | . 202 17 . . 30 . . . . . . . . . . . . . . . Thermal 157 | . 102 . . . 55 . . . . . . . . . . . . . . . Explosive . | . . . . . . . . . . . . . . . . . . . . . Electromagnetic 1595 | . 413 . . . . . . . . . . . . . . . . . . 1182 Impact . | . . . . . . . . . . . . . . . . . . . . . Slashing 479 | . . . . . 282 110 . 87 . . . . . . . . . . . . Piercing 240 | . . . . . . . . . . . . . . . . . . . . 240 Highest Corruption 17 | . 2 2 2 2 1 1 1 . . . . . . . . . . . 1 17 Average Corruption 1 | . 2 2 2 2 1 1 1 . . . . . . . . . . . 1 2 Corruption Purged 1 | . . . . . . . . . . . . . . . . . . . . 1 Corruption Blocked 4 | . . . . . . . . . . . . . . . . . . . . 4 Effects 35 | . 4 2 16 4 4 1 . . . . . . . . . . . . 2 2 Message Errors 11 | . 3 . 5 1 . . . . . . . . . . . . . . 2 . Matter Fused 7 | . . . 4 2 1 . . . . . . . . . . . . . . . Heat Flow Errors 7 | . . 2 3 . 1 1 . . . . . . . . . . . . . . Energy Discharges 2 | . . . . . 1 . . . . . . . . . . . . . . 1 Parts Rejected 1 | . . . . . . . . . . . . . . . . . . . . 1 Data Loss (minor) 3 | . . . 3 . . . . . . . . . . . . . . . . . Data Loss (major) 2 | . 1 . 1 . . . . . . . . . . . . . . . . . Misfires 2 | . . . . 1 1 . . . . . . . . . . . . . . . Overload Shots . | . . . . . . . . . . . . . . . . . . . . . Overflow Damage 4 | . 1 . . . . . . . . . . . . . . . . . . 3 Projectiles . | . . . . . . . . . . . . . . . . . . . . . Explosions 4 | . 1 . . . . . . . . . . . . . . . . . . 3 Melee . | . . . . . . . . . . . . . . . . . . . . . Knockbacks . | . . . . . . . . . . . . . . . . . . . . . Impact . | . . . . . . . . . . . . . . . . . . . . . Kinetic . | . . . . . . . . . . . . . . . . . . . . . Secondary . | . . . . . . . . . . . . . . . . . . . . . Self-Inflicted Damage 62 | . . . . . . . . . . . . . . . . . . . . 62 Shots 8 | . . . . . . . . . . . . . . . . . . . . 8 Rammed . | . . . . . . . . . . . . . . . . . . . . . Targets Rammed . | . . . . . . . . . . . . . . . . . . . . . Kicked . | . . . . . . . . . . . . . . . . . . . . . Crushed . | . . . . . . . . . . . . . . . . . . . . . Highest Temperature 361 | . 137 238 245 4 252 215 1 . 38 361 285 1 73 . 107 38 9 . . 33 Average Temperature 75 | . 63 91 96 4 79 59 1 . 17 110 109 1 40 . 55 24 4 . . 18 Received Heat Transfer 416 | . 63 29 . . 72 . . . . 9 9 . 9 . . . . . . 225 Effects 8 | . . . 3 . . . . . . 4 1 . . . . . . . . . Energy Bleed 2 | . . . . . . . . . . 1 1 . . . . . . . . . Interference 5 | . . . 3 . . . . . . 2 . . . . . . . . . . Matter Decay 1 | . . . . . . . . . . 1 . . . . . . . . . . Siege Activations . | . . . . . . . . . . . . . . . . . . . . . Robots Corrupted 1 | . . . . . . . . . . . . . . . . . . . . 1 Combat Hostiles 1 | . . . . . . . . . . . . . . . . . . . . 1 Parts Fried 4 | . 2 . . . . . . . . . . . . . . . . . . 2 Impact Corruptions . | . . . . . . . . . . . . . . . . . . . . . Robots Melted . | . . . . . . . . . . . . . . . . . . . . . Combat Hostiles . | . . . . . . . . . . . . . . . . . . . . . Parts Melted . | . . . . . . . . . . . . . . . . . . . . . Heat Transferred 325 | . 200 . . . 125 . . . . . . . . . . . . . . . Parts Sabotaged . | . . . . . . . . . . . . . . . . . . . . . Parts Stolen . | . . . . . . . . . . . . . . . . . . . . . Parts Stripped . | . . . . . . . . . . . . . . . . . . . . . Power Chain Reactions 2 | . 2 . . . . . . . . . . . . . . . . . . . Missiles Intercepted . | . . . . . . . . . . . . . . . . . . . . . Alert | -11 -10 -10 -10 -9 -8 -7 -7 -6 -5 -5 -5 -5 -4 -4 -4 -4 -3 -2 -1 -1 ------- Run | Scr Mat Min Exi Min Mat Fac Sto Fac Fac Upp Upp Zhi Pro Fac Upp Upp Res Res Acc Com Peak Influence 430 | . 244 22 . . 301 87 61 52 29 . . . . 18 . . 318 307 316 430 Initial 184 | . . 22 . . . 64 . 27 25 . . . . 18 . . 78 178 184 168 Average 139 | . 107 22 . . 143 65 44 43 28 . . . . 18 . . 210 261 199 254 Maximum Alert Level 2 | . 1 . . . 1 . . . . . . . . . . . 1 1 1 2 Low Security (%) 64 | . 70 100 . 100 59 100 100 100 100 . . . . 100 . . 30 19 53 31 Level 1 34 | . 29 . . . 40 . . . . . . . . . . . 69 80 46 58 Level 2 . | . . . . . . . . . . . . . . . . . . . . 9 Level 3 . | . . . . . . . . . . . . . . . . . . . . . Level 4 . | . . . . . . . . . . . . . . . . . . . . . Level 5 . | . . . . . . . . . . . . . . . . . . . . . High Security . | . . . . . . . . . . . . . . . . . . . . . Max Security . | . . . . . . . . . . . . . . . . . . . . . Squads Dispatched 12 | . 2 . . . 1 . . 1 1 . . . . . . . 3 1 1 2 Investigation 4 | . 1 . . . . . . 1 1 . . . . . . . . . . 1 Extermination 3 | . . . . . . . . . . . . . . . . . . 1 1 1 Reinforcement 5 | . 1 . . . 1 . . . . . . . . . . . 3 . . . Assault . | . . . . . . . . . . . . . . . . . . . . . Garrison . | . . . . . . . . . . . . . . . . . . . . . Intercept . | . . . . . . . . . . . . . . . . . . . . . Searches Triggered . | . . . . . . . . . . . . . . . . . . . . . Construction Impeded . | . . . . . . . . . . . . . . . . . . . . . Haulers Reinforced . | . . . . . . . . . . . . . . . . . . . . . Active Scanning Responses . | . . . . . . . . . . . . . . . . . . . . . Cargo Convoy Interrupts . | . . . . . . . . . . . . . . . . . . . . . Stealth | -11 -10 -10 -10 -9 -8 -7 -7 -6 -5 -5 -5 -5 -4 -4 -4 -4 -3 -2 -1 -1 --------- Run | Scr Mat Min Exi Min Mat Fac Sto Fac Fac Upp Upp Zhi Pro Fac Upp Upp Res Res Acc Com Distress Signals 11 | . 2 . . . 4 . . . . . . . . . . . . . . 5 Communications Jammed 20 | . . . . . . . . . . . . . . . . . . . 3 17 Distress Signals 20 | . . . . . . . . . . . . . . . . . . . 3 17 Times Spotted 229 | . 13 1 . . 36 1 . . . 8 8 . 2 . 5 2 7 5 14 127 Peak Tracking Total 105 | . 4 1 . . 16 1 . . . 8 10 . 3 . 9 2 7 4 5 105 Tactical Retreats 21 | . . . . . 6 . . . . 2 1 . 1 . 3 . 3 1 2 2 Traps | -11 -10 -10 -10 -9 -8 -7 -7 -6 -5 -5 -5 -5 -4 -4 -4 -4 -3 -2 -1 -1 ------- Run | Scr Mat Min Exi Min Mat Fac Sto Fac Fac Upp Upp Zhi Pro Fac Upp Upp Res Res Acc Com Traps Triggered 6 | . 1 . . . 1 1 . 1 . . . . . . . . 1 1 . . Indirectly . | . . . . . . . . . . . . . . . . . . . . . Trap Hack Attempts . | . . . . . . . . . . . . . . . . . . . . . Triggered . | . . . . . . . . . . . . . . . . . . . . . Disarmed . | . . . . . . . . . . . . . . . . . . . . . Reprogrammed . | . . . . . . . . . . . . . . . . . . . . . Reused . | . . . . . . . . . . . . . . . . . . . . . Traps Extracted . | . . . . . . . . . . . . . . . . . . . . . Installed . | . . . . . . . . . . . . . . . . . . . . . Triggered . | . . . . . . . . . . . . . . . . . . . . . Machines | -11 -10 -10 -10 -9 -8 -7 -7 -6 -5 -5 -5 -5 -4 -4 -4 -4 -3 -2 -1 -1 ---------- Run | Scr Mat Min Exi Min Mat Fac Sto Fac Fac Upp Upp Zhi Pro Fac Upp Upp Res Res Acc Com Machines Disabled 5 | . 1 . . . . . 3 . . . . . . . 1 . . . . . Max in Single Turn 1 | . 1 . . . . . 1 . . . . . . . 1 . . . . . Garrison Access 1 | . . . . . . . . . . . . . . . . . 1 . . . Machines Sabotaged . | . . . . . . . . . . . . . . . . . . . . . Garrisons Compromised . | . . . . . . . . . . . . . . . . . . . . . Overloaded Fab Kills . | . . . . . . . . . . . . . . . . . . . . . Hacking | -11 -10 -10 -10 -9 -8 -7 -7 -6 -5 -5 -5 -5 -4 -4 -4 -4 -3 -2 -1 -1 --------- Run | Scr Mat Min Exi Min Mat Fac Sto Fac Fac Upp Upp Zhi Pro Fac Upp Upp Res Res Acc Com Machines Accessed 43 | . 1 . 5 . 2 4 2 1 1 . 1 9 . . 1 . 3 1 6 6 Terminals 23 | . 1 . . . 2 2 2 . 1 . . . . . . . 2 1 6 6 Fabricators 1 | . . . . . . 1 . . . . . . . . . . . . . . Repair Stations 1 | . . . . . . . . 1 . . . . . . . . . . . . Recycling Units . | . . . . . . . . . . . . . . . . . . . . . Scanalyzers 1 | . . . . . . 1 . . . . . . . . . . . . . . Garrison Access 1 | . . . . . . . . . . . . . . . . . 1 . . . Total Hacks 157 | . 1 . 50 . 4 6 4 3 3 . 1 48 . . 1 . 6 2 13 15 Successful 120 | . . . 50 . 3 3 . 2 . . 1 48 . . 1 . 4 1 3 4 Failed 37 | . 1 . . . 1 3 4 1 3 . . . . . . . 2 1 10 11 Catastrophic 7 | . . . . . . . 1 . . . . . . . . . 1 1 1 3 Database Lockouts . | . . . . . . . . . . . . . . . . . . . . . Manual 34 | . 1 . 1 . 4 2 2 . 3 . . . . . . . 3 . 8 10 Terminals 50 | . 1 . . . 4 3 4 . 3 . . . . . . . 5 2 13 15 Fabricators 1 | . . . . . . 1 . . . . . . . . . . . . . . Repair Stations 3 | . . . . . . . . 3 . . . . . . . . . . . . Recycling Units . | . . . . . . . . . . . . . . . . . . . . . Scanalyzers 2 | . . . . . . 2 . . . . . . . . . . . . . . Garrison Access 1 | . . . . . . . . . . . . . . . . . 1 . . . Terminal Hacks 115 | . . . 50 . 3 2 . . . . 1 48 . . 1 . 3 1 3 3 Record 86 | . . . 49 . . . . . . . . 36 . . . . . . . 1 Part Schematic 4 | . . . . . . . . . . . . 4 . . . . . . . . Robot Analysis 4 | . . . . . . . . . . . . 4 . . . . . . . . Prototype ID Bank 4 | . . . . . . . . . . . . 4 . . . . . . . . Open Door 4 | . . . . . . . . . . . 1 . . . 1 . . . 2 . Level Access Points 2 | . . . . . . . . . . . . . . . . . 1 1 . . Branch Access Points 1 | . . . . . . . . . . . . . . . . . . . 1 . Terminal Index 2 | . . . . . 1 . . . . . . . . . . . . . . 1 Unreport Threat 2 | . . . . . 1 1 . . . . . . . . . . . . . . Locate Traps 1 | . . . . . . 1 . . . . . . . . . . . . . . Recall Reinforcements 1 | . . . . . . . . . . . . . . . . . 1 . . . Zone Layout 2 | . . . . . 1 . . . . . . . . . . . 1 . . . EX-Prototype ID Bank 1 | . . . 1 . . . . . . . . . . . . . . . . . Disengage Seal 1 | . . . . . . . . . . . . . . . . . . . . 1 Fabricator Hacks . | . . . . . . . . . . . . . . . . . . . . . Repair Station Hacks 2 | . . . . . . . . 2 . . . . . . . . . . . . Scan Component 1 | . . . . . . . . 1 . . . . . . . . . . . . Repair 1 | . . . . . . . . 1 . . . . . . . . . . . . Recycling Unit Hacks . | . . . . . . . . . . . . . . . . . . . . . Scanalyzer 1 | . . . . . . 1 . . . . . . . . . . . . . . Insert Component 1 | . . . . . . 1 . . . . . . . . . . . . . . Garrison Access Hacks 1 | . . . . . . . . . . . . . . . . . 1 . . . Seal Access 1 | . . . . . . . . . . . . . . . . . 1 . . . Unauthorized Hacks 1 | . . . . . . . . . . . . . . . . . . . . 1 Terminals 1 | . . . . . . . . . . . . . . . . . . . . 1 Assimilate 1 | . . . . . . . . . . . . . . . . . . . . 1 Fabricators . | . . . . . . . . . . . . . . . . . . . . . Repair Stations . | . . . . . . . . . . . . . . . . . . . . . Recycling Units . | . . . . . . . . . . . . . . . . . . . . . Scanalyzers . | . . . . . . . . . . . . . . . . . . . . . Garrison Access . | . . . . . . . . . . . . . . . . . . . . . Data Cores Recovered 2 | . . . . . . . . . . . . . . . . . . . . 2 Used 1 | . . . . . . . . . . . . . . . . . . . . 1 Hacking Detections 13 | . . . . . 2 2 1 1 1 . . . . . . . 1 1 1 3 Full Trace Events 2 | . . . . . . . . 1 1 . . . . . . . . . . . Feedback Events . | . . . . . . . . . . . . . . . . . . . . . Feedback Blocked . | . . . . . . . . . . . . . . . . . . . . . Robot Schematics Acquired . | . . . . . . . . . . . . . . . . . . . . . Robots Built . | . . . . . . . . . . . . . . . . . . . . . Authchips . | . . . . . . . . . . . . . . . . . . . . . Time . | . . . . . . . . . . . . . . . . . . . . . Total Robot Build Rating . | . . . . . . . . . . . . . . . . . . . . . Part Schematics Acquired 4 | . . . . . . . . . . . . 4 . . . . . . . . Parts Built . | . . . . . . . . . . . . . . . . . . . . . Authchips . | . . . . . . . . . . . . . . . . . . . . . Time . | . . . . . . . . . . . . . . . . . . . . . Total Part Build Rating . | . . . . . . . . . . . . . . . . . . . . . Parts Repaired 1 | . . . . . . . . 1 . . . . . . . . . . . . Time 13 | . . . . . . . . 13 . . . . . . . . . . . . Parts Recycled . | . . . . . . . . . . . . . . . . . . . . . Recycled Matter . | . . . . . . . . . . . . . . . . . . . . . Retrieved Matter . | . . . . . . . . . . . . . . . . . . . . . Retrieved Components . | . . . . . . . . . . . . . . . . . . . . . Parts Scanalyzed . | . . . . . . . . . . . . . . . . . . . . . Part Schematics Acquired . | . . . . . . . . . . . . . . . . . . . . . Parts Damaged . | . . . . . . . . . . . . . . . . . . . . . Bothacking | -11 -10 -10 -10 -9 -8 -7 -7 -6 -5 -5 -5 -5 -4 -4 -4 -4 -3 -2 -1 -1 ------------ Run | Scr Mat Min Exi Min Mat Fac Sto Fac Fac Upp Upp Zhi Pro Fac Upp Upp Res Res Acc Com Used RIF Installer . | . . . . . . . . . . . . . . . . . . . . . Robots Hacked . | . . . . . . . . . . . . . . . . . . . . . Non-combat . | . . . . . . . . . . . . . . . . . . . . . Combat . | . . . . . . . . . . . . . . . . . . . . . Robot Hacks Applied . | . . . . . . . . . . . . . . . . . . . . . Relay Couplers Released . | . . . . . . . . . . . . . . . . . . . . . Fabnet Peak Effective % . | . . . . . . . . . . . . . . . . . . . . . Robots Rewired . | . . . . . . . . . . . . . . . . . . . . . Allies Hacked . | . . . . . . . . . . . . . . . . . . . . . Hacks Repelled . | . . . . . . . . . . . . . . . . . . . . . Allies | -11 -10 -10 -10 -9 -8 -7 -7 -6 -5 -5 -5 -5 -4 -4 -4 -4 -3 -2 -1 -1 -------- Run | Scr Mat Min Exi Min Mat Fac Sto Fac Fac Upp Upp Zhi Pro Fac Upp Upp Res Res Acc Com Total Allies 1 | . . 1 . . . . . . . . . . . . . . . . . . Largest Group 1 | . . 1 1 . . . . . . . . . . . . . . . . . Highest-Rated Group 31 | . . 31 31 . . . . . . . . . . . . . . . . . Highest-Rated Ally 31 | . . 31 31 . . . . . . . . . . . . . . . . . Total Orders . | . . . . . . . . . . . . . . . . . . . . . Ally Attacks 3 | . . 3 . . . . . . . . . . . . . . . . . . Total Damage 64 | . . 64 . . . . . . . . . . . . . . . . . . Kills 1 | . . 1 . . . . . . . . . . . . . . . . . . Allies Corrupted . | . . . . . . . . . . . . . . . . . . . . . Allies Melted . | . . . . . . . . . . . . . . . . . . . . . Intel | -11 -10 -10 -10 -9 -8 -7 -7 -6 -5 -5 -5 -5 -4 -4 -4 -4 -3 -2 -1 -1 ------- Run | Scr Mat Min Exi Min Mat Fac Sto Fac Fac Upp Upp Zhi Pro Fac Upp Upp Res Res Acc Com Robot Analysis Total 4 | . . . . . . . . . . . . 4 . . . . . . . . Derelict Logs Recovered 4 | . . . . . . . . . . 1 1 . . . 1 1 . . . . Drone Launches . | . . . . . . . . . . . . . . . . . . . . . Drone Recoveries . | . . . . . . . . . . . . . . . . . . . . . Decoded 0b10 Intel 45 | . . . . . . . . . . . . . . . . . 6 10 19 10 Traps 11 | . . . . . . . . . . . . . . . . . . 4 4 3 Emergency Access 2 | . . . . . . . . . . . . . . . . . 1 1 . . Items 23 | . . . . . . . . . . . . . . . . . 4 4 10 5 Machines 6 | . . . . . . . . . . . . . . . . . . 1 4 1 Patrols 1 | . . . . . . . . . . . . . . . . . 1 . . . Guards 2 | . . . . . . . . . . . . . . . . . . . 1 1 Exploration | -11 -10 -10 -10 -9 -8 -7 -7 -6 -5 -5 -5 -5 -4 -4 -4 -4 -3 -2 -1 -1 ------------- Run | Scr Mat Min Exi Min Mat Fac Sto Fac Fac Upp Upp Zhi Pro Fac Upp Upp Res Res Acc Com Turns Passed 5452 | . 507 78 955 303 718 468 220 63 87 148 83 54 32 17 87 6 301 288 715 322 Spaces Moved 7170 | 1 237 56 765 46 484 761 311 153 214 390 305 184 134 57 326 27 529 458 1086 646 Core 1 | . . . . . . . . . . . . . . . . . . . . 1 Treads 147 | . 127 . . . 19 1 . . . . . . . . . . . . . . Legs 1069 | 1 110 56 765 46 91 . . . . . . . . . . . . . . . Wheels . | . . . . . . . . . . . . . . . . . . . . . Hover . | . . . . . . . . . . . . . . . . . . . . . Flight 5953 | . . . . . 374 760 311 153 214 390 305 184 134 57 326 27 529 458 1086 645 Fastest Speed 6 | 120 120 120 120 120 37 28 22 26 23 6 6 26 13 6 6 6 21 34 30 30 Average Speed 47 | 120 150 120 120 120 67 32 26 26 23 21 23 26 23 24 25 21 27 35 35 31 Slowest Speed 400 | 120 400 120 120 120 380 160 29 26 23 26 29 26 26 26 26 26 34 36 36 350 Overloaded Moves 178 | . . . . . . . 4 . . 38 39 . 13 3 11 6 64 . . . Propulsion Burnouts . | . . . . . . . . . . . . . . . . . . . . . Robots Hopped 51 | . . . . . 10 2 3 2 1 1 . 3 . . . . . 2 3 24 Cave-ins Triggered . | . . . . . . . . . . . . . . . . . . . . . Exploration Rate (%) 31 | 2 42 8 92 12 50 20 42 5 6 70 56 62 28 2 65 7 17 16 25 28 Regions Visited 20 Branch Regions 11 Pre-discovered Areas 4 | . . . 1 . . . . . . . . 3 . . . . . . . . Known Exits Taken 3 | . . . . . . . . . . . . . . . . . 1 1 1 . Unknown Exits Taken 17 | 1 1 1 1 1 1 1 1 1 1 1 1 1 1 1 1 1 . . . . Scrap Searched 10 | . . . . . . . . . . 5 2 . 1 . 2 . . . . . Spaces Dug 83 | . . . . . 2 10 1 . 2 3 . . . . . . 11 5 34 15 Terrain Destroyed 87 | . 4 . . . 2 10 1 . 2 3 . . . . . . 11 5 34 15 Melee 83 | . . . . . 2 10 1 . 2 3 . . . . . . 11 5 34 15 Projectile . | . . . . . . . . . . . . . . . . . . . . . AOE 4 | . 4 . . . . . . . . . . . . . . . . . . . Terrain Rammed . | . . . . . . . . . . . . . . . . . . . . . Walls Destroyed . | . . . . . . . . . . . . . . . . . . . . . Machines Disabled . | . . . . . . . . . . . . . . . . . . . . . Actions | -11 -10 -10 -10 -9 -8 -7 -7 -6 -5 -5 -5 -5 -4 -4 -4 -4 -3 -2 -1 -1 --------- Run | Scr Mat Min Exi Min Mat Fac Sto Fac Fac Upp Upp Zhi Pro Fac Upp Upp Res Res Acc Com Total 8844 | . 309 63 808 294 760 961 438 171 248 449 318 189 133 59 328 26 669 570 1351 700 Wait 1253 | . . 6 13 249 196 127 117 13 22 54 2 . . . 2 . 101 97 214 40 Move 7062 | . 236 55 764 45 464 756 304 148 211 387 304 177 133 56 325 26 528 453 1079 611 Hop 36 | . . . . . 9 2 3 2 1 1 . 3 . . . . . 2 3 10 Pick Up 74 | . 8 . 10 . 6 13 2 4 1 2 6 3 . 1 . . 8 3 5 2 Fast Attach 42 | . 5 . 4 . 12 4 1 1 3 . . 2 . . . . 3 1 2 4 Attach 42 | . 2 . . . 6 9 . 2 3 . . . . 2 . . 4 3 4 7 Detach 23 | . 2 . . . 3 8 . . 4 . . . . . . . 1 . 3 2 Swap 20 | . 4 . . . 5 6 1 . . . . . . . . . 2 1 1 . Drop 86 | . 8 . 17 . 5 19 4 . 1 2 6 4 . . . . 11 3 5 1 Fire 58 | . 44 2 . . 8 2 . . . . . . . . . . . . . 2 Melee 147 | . . . . . 46 15 6 1 2 3 . . . . 1 . 11 7 35 20 Ram . | . . . . . . . . . . . . . . . . . . . . . Kick . | . . . . . . . . . . . . . . . . . . . . . Crush . | . . . . . . . . . . . . . . . . . . . . . Escape Stasis 1 | . . . . . . . . . . . . . . . . . . . . 1 Rewire . | . . . . . . . . . . . . . . . . . . . . . Trap . | . . . . . . . . . . . . . . . . . . . . . Miscellaneous . | . . . . . . . . . . . . . . . . . . . . . Route ------- -11/Scrapyard -10/Materials (discovered 2 exits: [*Mat] / [*Min]) -10/Mines -10/Exiles (discovered 2 exits: [*Min x2]) -9/Mines -8/Materials -7/Factory -7/Storage -6/Factory -5/Factory -5/Upper Caves -5/Upper Caves -5/Zhirov -4/Proximity Caves -4/Factory -4/Upper Caves -4/Upper Caves (discovered 2 exits: *Res / War) -3/Research (discovered 3 exits: *Res x3) -2/Research (discovered 3 exits: *Acc x3) -1/Access -1/Command History --------- Turn | Location | Event 1 | -11/Scrapyard | Discovered new exit (range 0) 1 | -11/Scrapyard | Entered Materials 381 | -10/Materials | Discovered new exit (range 11) 495 | -10/Materials | Discovered new exit (range 12) 508 | -10/Materials | Entered Mines 509 | -10/Mines | Assembled infested the area 528 | -10/Mines | Received a Mining Laser from a helpful Derelict 581 | -10/Mines | Deemed a non-threat by the Exiles lab entrance 581 | -10/Mines | Discovered new exit (range 5) 586 | -10/Mines | Entered Exiles 586 | -10/Exiles | Accompanied by 1 ally 606 | -10/Exiles | Build established: Scavenger-Mutant 620 | -10/Exiles | Met 8R-AWN 640 | -10/Exiles | Met EX-HEX 684 | -10/Exiles | Met EX-BIN 701 | -10/Exiles | Aligned with FarCom system 702 | -10/Exiles | Given EX-Vault access code 772 | -10/Exiles | Opened EX-Vault 802 | -10/Exiles | Warned to stay clear of 0b10 Research branches 831 | -10/Exiles | Found Flying Fortress v7 897 | -10/Exiles | Met EX-DEC 902 | -10/Exiles | Learned location of Zion (-7) 966 | -10/Exiles | Visited The Gauntlet 1270 | -10/Exiles | Discovered new exit (range 10) 1399 | -10/Exiles | Discovered new exit (range 14) 1541 | -10/Exiles | Left Exiles lab with Flying Fortress v7 1541 | -10/Exiles | Entered Mines 1836 | -9/Mines | Discovered new exit (range 8) 1844 | -9/Mines | Entered Materials 1844 | -8/Materials | Evolved 4 slots: Propulsion x4 2249 | -8/Materials | Lost 3 parts (1p1n1w) 2394 | -8/Materials | Lost 7 parts (1p3n1u2w) 2551 | -8/Materials | Discovered new exit (range 8) 2562 | -8/Materials | Entered Factory 2562 | -7/Factory | Evolved 2 slots: Propulsion x2 3025 | -7/Factory | Discovered new exit (range 7) 3028 | -7/Factory | Build established: Sprinter 3030 | -7/Factory | Entered Storage 3246 | -7/Storage | Discovered new exit (range 16) 3250 | -7/Storage | Entered Factory 3250 | -6/Factory | Evolved 2 slots: Utility x2 3281 | -6/Factory | Repaired Med. Storage Unit 3310 | -6/Factory | Discovered new exit (range 13) 3313 | -6/Factory | Entered another Factory area 3313 | -5/Factory | Evolved 2 slots: Power x1, Propulsion x1 3397 | -5/Factory | Discovered new exit (range 15) 3400 | -5/Factory | Entered Upper Caves 3464 | -5/Upper Caves | Learned Factory trap positions 3544 | -5/Upper Caves | Discovered new exit (range 10) 3545 | -5/Upper Caves | Encountered a Warlord checkpoint 3548 | -5/Upper Caves | Entered another Upper Caves area 3550 | -5/Upper Caves | Learned Factory terminal intel 3571 | -5/Upper Caves | Spotted B-75 Beast 3629 | -5/Upper Caves | Discovered new exit (range 6) 3631 | -5/Upper Caves | Entered Zhirov 3631 | -5/Zhirov | Discovered new exit (range 3) 3636 | -5/Zhirov | Met Zhirov 3642 | -5/Zhirov | Learned location of Quarantine (-2) 3642 | -5/Zhirov | Learned location of Testing (-3) 3642 | -5/Zhirov | Learned location of Command (-1) 3643 | -5/Zhirov | Build established: Hacker-Sprinter 3647 | -5/Zhirov | Zhirov requested help retrieving the SGEMP Prototype 3653 | -5/Zhirov | Found Alien Artifact 3653 | -5/Zhirov | Identified Integrated Dissipator 3653 | -5/Zhirov | Installed Integrated Dissipator, increased core heat dissipation (+20) 3660 | -5/Zhirov | Found Alien Artifact 3685 | -5/Zhirov | Entered Proximity Caves 3714 | -4/Proximity Caves | Discovered new exit (range 12) 3717 | -4/Proximity Caves | Entered Factory 3717 | -4/Factory | Evolved 2 slots: Utility x2 3718 | -4/Factory | Loaded intel: 71 trap records 3719 | -4/Factory | Loaded intel: 26 terminal locations 3733 | -4/Factory | Discovered new exit (range 7) 3734 | -4/Factory | Entered Upper Caves 3742 | -4/Upper Caves | Learned 4 Research zone layouts 3784 | -4/Upper Caves | Attacked by a delusional Derelict stockpiling parts 3818 | -4/Upper Caves | Discovered new exit (range 10) 3821 | -4/Upper Caves | Entered another Upper Caves area 3822 | -4/Upper Caves | Discovered new exit (range 10) 3826 | -4/Upper Caves | Identified exit to Warlord 3827 | -4/Upper Caves | Entered Research 3827 | -3/Research | Evolved 2 slots: Utility x2 3867 | -3/Research | Identified exit to Research 4121 | -3/Research | Found Gamma Bomb Array 4128 | -3/Research | Entered another Research area 4128 | -2/Research | Evolved 2 slots: Utility x2 4184 | -2/Research | Identified exit to Access 4225 | -2/Research | Spotted B-90 Cyclops 4402 | -2/Research | Build established: Hacker-Mutant 4416 | -2/Research | Entered Access 4416 | -1/Access | Evolved 2 slots: Utility x2 4815 | -1/Access | Found Enh. Force Lance 4859 | -1/Access | Identified exit to Command 5131 | -1/Access | Entered Command 5337 | -1/Command | Disengaged cave seal 5337 | -1/Command | Wild derelicts emerged from the dark tunnel 5410 | -1/Command | Spotted M Guard 5410 | -1/Command | Spotted M Guard 5410 | -1/Command | Spotted Combat Programmer 5411 | -1/Command | Spotted Combat Programmer 5439 | -1/Command | System corruption reached 10% 5442 | -1/Command | Identified Transdimensional Reconstructor 5442 | -1/Command | Failed to warp due to unstable space 5447 | -1/Command | Core integrity fell below 50% 5452 | -1/Command | Core integrity fell below 20% 5453 | -1/Command | Destroyed by G-73 Enforcer with Heavy Laser Last Messages --------------- 05448_ P-80 Master resets H-88 Terminator, system corruption cleaned. 05448_ Combat Programmer resets P-80 Master, system corruption cleaned. 05448_ P-80 Master resets S-43 Plague, system corruption cleaned. 05448_ P-80 Master resets P-80 Master, system corruption cleaned. 05449_ P-80 Master resets G-73 Enforcer, system corruption cleaned. 05449_ P-80 Master resets P-80 Master, system corruption cleaned. 05450_ System corrupted: Energy discharge (-9). 05450_ P-80 Master resets X-87 Electro, system corruption cleaned. 05450_ Combat Programmer resets G-73 Enforcer, system corruption cleaned. 05450_ P-80 Master resets P-80 Master, system corruption cleaned. 05450_ Q-thruster destroyed. 05450_ Hcp. Battery destroyed. 05450_ Critical hit (Burn: +37). 05451_ P-80 Master resets P-80 Master, system corruption cleaned. 05451_ G-73 Enforcer suffers critical hit (Burn). 05451_ Combat Programmer resets P-80 Master, system corruption cleaned. 05451_ P-80 Master resets P-80 Master, system corruption cleaned. 05452_ P-80 Master resets G-73 Enforcer, system corruption cleaned. 05452_ E-15 Imp destroyed. [Achievement: Tester] Map ----- +----------------------------------------------------+ | ?????????????????????????????????????????????????? | | ?????????????????????????????????????????????????? | | ?????????????????????????????????????????????????? | | ?????????????????????????????????????????????????? | | ?????????????????????????????????????????????????? | | ?????????????????????????????????????????????????? | | ?????????????????????????????????????????????????? | | ?????????????????????????????????????????????????? | | ?????????????????????????????????????????????????? | | ?????????????????????????????????????????????????? | | ??????????????????????###????????????????????????? | | ?????????????????????? ????????????????????????? | | ?????????????????????? ????????????????????????? | | ?????????????????????? ????????????????????????? | | ?????????????????????? ????????????????????????? | | ?????????????????????? ????????????????????????? | | ?????????????????????? ????????????????????????? | | ??????????????????????# #???????????????????????? | | ??????????????????????# #???????????????????????? | | ??????????????????????# #???????????????????????? | | ??????????????????????# #?????????????????^?????? | | ??????????????????????# #???????????????????????? | | ??????????????????????# #????????????w??????????? | | ??????????????????????# #????#??????????????????? | | ???????????####### ###pp###++######?????????????? | | ???????????# p hgexp@/!=%= #????????????? | | ???????????# pp x ppppg=s= #????????????? | | ???????????# e ppgppgg!g* #????????????? | | ???????????# x xp ggg[gggg #????????????? | | ???????????##/x###pp###gg###++#######????????????? | | ????????????# p#?# p#?# g#??g #??????????????????? | | ????????????#hs#?#pp#?#gg#??g #???????w??????????? | | ????????????#eg#?# p#?#gg#??g #??????????????????? | | ????????????#ge#?# p#?#g #??gg#??????????????????? | | ????????????#gg#?# p#?# g#???g#??????????????????? | | ????????????#xg#?# p#?#gg#??g?#??????????????????? | | ???????????## g### p#?# g#??g????????????????????? | | ???????????# gg# ?? gg ??g????????????????????? | | ???????????# "gp# p?? ???????????????????????? | | ???????????# "ph# ?? ???????????????????????? | | ???????????# %"# ?? ???????????????????????? | | ???????????# "%%? ?????????????????????????????? | | ???????????# "%%? ?????????????????????????????? | | ???????????### #?##/#????????????????????????????? | | ?????????????# #??# #???#????????????????????????? | | ?????????????# #??# #?? #????????????????????????? | | ?????????????# #### ### #### #???????????????????? | | ?????????????# #???????????????????? | | ?????????????######## #######????????????????????? | | ????????????????????# #????????????????????????? | +----------------------------------------------------+ Best States ------------- Heat Dissipation 72 Energy Generation 43 Energy Capacity 550 Matter Stores 300 Matter Capacity 300 Sight Range 16 Terrain Scan Density 10 ECM Strength 6 Jamming Range 16 Armor Coverage 150 Evasion (%) 76 Recoil Reduction 2 Offensive Hacking 20 Defensive Hacking 48 Item Schematics ----------------- Assault Drone Bay | -5/Zhirov | Free Exp. Heat Sink | -5/Zhirov | Free Exp. Optical Array | -5/Zhirov | Free Imp. Arc Thrower | -5/Zhirov | Free Robot Schematics ------------------ None Fabricated ------------ Nothing Alien Tech Used ----------------- Integrated Dissipator Transdimensional Reconstructor Achievements -------------- Tester Total Silence Whoosh! Challenges ------------ None Game ------ Seed IonicVisualRecalibrator Manual? 0 Play Time 01:58:53 Cumulative 70.4 hours Start 2022.04.11 @ 22:43:02 End 2022.04.12 @ 01:01:02 Sessions 3 Manual Loads 0 Difficulty Rogue Special Mode None Game No. 75 Rogue 75 Adventurer 0 Explorer 0 Win Type - Total 0 Types 0/0/0/0/0/0/0/0/0 Lore% 46 Gallery% 50 Achievement% 38 Wizard Run 0 Options --------- ASCII 1 Keyboard 1 Movement Numpad Keybinds 0 Fullscreen 1 Font 18/X11 Map View 76x50 Tactical HUD 1 Map Filters NONE Filters NONE Steam 1 RUN: bef9aa1c-30c2-4386-a86f-ff05f8e74fe2